fUSD/lending_fUSD_20250419
["ID","MTS","AMOUNT","RATE_DAILY","PERIOD"]
[358385088,1745045432602,-741.54979015,0.00019785,2]
[358385089,1745045432614,-419.91705816,0.00019785,2]
[358385323,1745045446412,-400.0,0.00019785,2]
[358385324,1745045446543,-989.02894518,0.00019785,2]
[358385327,1745045643904,150.0,0.00019644,5]
[358385328,1745045761468,150.0,0.0001964,5]
[358385329,1745045772827,1557.35,0.00018843,2]
[358385331,1745045944795,2189.86,0.00016924,2]
[358385332,1745045972615,163.83,0.00027425,30]
[358385333,1745046060642,196.46,0.00018819,2]
[358385334,1745046148721,2347.75,0.00018816,2]
[358385335,1745046204954,250.0,0.00017,2]
[358385336,1745046206940,-269.1254,0.00019,2]
[358385337,1745046307975,-30.8746,0.00019,2]
[358385338,1745046308001,-2189.86,0.00019188,2]
[358385339,1745046308025,-1330.83908775,0.00019583,2]
[358385340,1745046308053,-150.0,0.00019683,2]
[358385341,1745046308079,-300.0,0.00019685,2]
[358385342,1745046308103,-300.0,0.00019685,2]
[358385343,1745046308126,-253.98059422,0.00019685,2]
[358385344,1745046308154,-5721.2041,0.00019686,2]
[358385345,1745046308179,-156.97062424,0.00019686,2]
[358385346,1745046308203,-2500.0,0.00019686,2]
[358385347,1745046308231,-170.0412,0.00019697,2]
[358385348,1745046308255,-161.3,0.00019776,2]
[358385349,1745046308281,-17319.54623628,0.00019785,2]
[358385350,1745046308305,-3313.03291565,0.00019785,2]
[358385351,1745046308329,-151.0,0.00019785,2]
[358385352,1745046308352,-151.0,0.00019785,2]
[358385353,1745046308375,-151.0,0.00019785,2]
[358385354,1745046308396,-155.120484,0.00019786,2]
[358385355,1745046308418,-151.0,0.00019786,2]
[358385356,1745046308439,-222.582331,0.00019786,2]
[358385357,1745046308461,-151.0,0.00019786,2]
[358385358,1745046308482,-268.248718,0.00019786,2]
[358385359,1745046308504,-151.0,0.00019786,2]
[358385360,1745046308528,-153.483608,0.00019786,2]
[358385361,1745046308551,-213.388807,0.00019786,2]
[358385362,1745046308575,-151.0,0.00019786,2]
[358385363,1745046308844,-151.0,0.00019786,2]
[358385364,1745046308867,-151.0,0.00019786,2]
[358385365,1745046308893,-155.658655,0.00019786,2]
[358385366,1745046308917,-151.0,0.00019786,2]
[358385367,1745046308942,-151.0,0.00019786,2]
[358385368,1745046308968,-151.0,0.00019786,2]
[358385369,1745046308993,-151.0,0.00019786,2]
[358385370,1745046309015,-218.291347,0.00019786,2]
[358385371,1745046309037,-154.567456,0.00019786,2]
[358385372,1745046309061,-154.197272,0.00019786,2]
[358385373,1745046309084,-151.0,0.00019786,2]
[358385374,1745046309107,-156.170034,0.00019786,2]
[358385375,1745046309131,-154.64611,0.00019786,2]
[358385376,1745046309153,-152.915839,0.00019786,2]
[358385377,1745046309177,-150.0,0.00019786,2]
[358385378,1745046309203,-150.0,0.00019786,2]
[358385379,1745046309228,-153.822325,0.00019786,2]
[358385380,1745046309254,-248.091522,0.00019786,2]
[358385381,1745046309278,-151.0,0.00019786,2]
[358385382,1745046309301,-164.754431,0.00019786,2]
[358385383,1745046309325,-151.0,0.00019786,2]
[358385384,1745046309351,-155.168342,0.00019786,2]
[358385385,1745046309374,-151.0,0.00019786,2]
[358385386,1745046309396,-152.532568,0.00019786,2]
[358385387,1745046309420,-151.0,0.00019786,2]
[358385388,1745046309445,-159.586846,0.00019786,2]
[358385389,1745046309468,-151.0,0.00019786,2]
[358385390,1745046309493,-174.357056,0.00019786,2]
[358385391,1745046309516,-151.0,0.00019786,2]
[358385392,1745046309539,-153.539627,0.00019786,2]
[358385393,1745046309562,-151.0,0.00019786,2]
[358385394,1745046309586,-151.0,0.00019786,2]
[358385395,1745046309609,-161.736443,0.00019786,2]
[358385396,1745046309632,-151.0,0.00019786,2]
[358385397,1745046309655,-152.479812,0.00019786,2]
[358385398,1745046309679,-153.374524,0.00019786,2]
[358385399,1745046309703,-153.31815,0.00019786,2]
[358385400,1745046309726,-177.602425,0.00019786,2]
[358385401,1745046309749,-151.0,0.00019786,2]
[358385402,1745046309772,-151.0,0.00019786,2]
[358385403,1745046309796,-175.948337,0.00019786,2]
[358385404,1745046309819,-151.0,0.00019786,2]
[358385405,1745046309843,-151.0,0.00019786,2]
[358385406,1745046309867,-151.0,0.00019786,2]
[358385407,1745046309891,-151.0,0.00019786,2]
[358385408,1745046309917,-262.040346,0.00019786,2]
[358385409,1745046309942,-151.0,0.00019786,2]
[358385410,1745046309965,-151.0,0.00019786,2]
[358385411,1745046309989,-151.0,0.00019786,2]
[358385412,1745046310013,-151.0,0.00019786,2]
[358385413,1745046310037,-151.0,0.00019786,2]
[358385414,1745046310061,-151.0,0.00019786,2]
[358385415,1745046310084,-151.0,0.00019786,2]
[358385416,1745046310108,-151.0,0.00019786,2]
[358385417,1745046310133,-151.0,0.00019786,2]
[358385418,1745046310156,-151.0,0.00019786,2]
[358385419,1745046310180,-151.0,0.00019786,2]
[358385420,1745046310204,-151.0,0.00019786,2]
[358385421,1745046310227,-151.0,0.00019786,2]
[358385422,1745046310251,-151.0,0.00019786,2]
[358385423,1745046310276,-151.0,0.00019786,2]
[358385424,1745046310300,-151.0,0.00019786,2]
[358385425,1745046310324,-151.0,0.00019786,2]
[358385426,1745046310350,-151.0,0.00019786,2]
[358385427,1745046310373,-280.638724,0.00019786,2]
[358385428,1745046310396,-154.171447,0.00019786,2]
[358385429,1745046310420,-153.654079,0.00019786,2]
[358385430,1745046310446,-155.951064,0.00019786,2]
[358385431,1745046310471,-200.0,0.00019786,2]
[358385432,1745046310495,-151.0,0.00019786,2]
[358385433,1745046310521,-151.0,0.00019786,2]
[358385434,1745046310544,-151.0,0.00019786,2]
[358385435,1745046310567,-151.0,0.00019786,2]
[358385436,1745046310591,-151.0,0.00019786,2]
[358385437,1745046310617,-151.0,0.00019786,2]
[358385438,1745046310641,-152.620813,0.00019786,2]
[358385439,1745046310664,-151.0,0.00019786,2]
[358385440,1745046310688,-151.0,0.00019786,2]
[358385441,1745046310713,-164.233014,0.00019786,2]
[358385442,1745046310737,-151.0,0.00019786,2]
[358385443,1745046310760,-151.0,0.00019786,2]
[358385444,1745046310783,-157.34687,0.00019786,2]
[358385445,1745046310806,-151.0,0.00019786,2]
[358385446,1745046310830,-154.079531,0.00019786,2]
[358385447,1745046310853,-151.0,0.00019786,2]
[358385448,1745046310876,-152.294968,0.00019786,2]
[358385449,1745046310899,-151.925225,0.00019786,2]
[358385450,1745046310922,-151.0,0.00019786,2]
[358385451,1745046310944,-153.726706,0.00019786,2]
[358385452,1745046310968,-153.850885,0.00019786,2]
[358385453,1745046310991,-153.018722,0.00019786,2]
[358385454,1745046311015,-151.0,0.00019786,2]
[358385455,1745046311038,-151.0,0.00019786,2]
[358385456,1745046311062,-151.0,0.00019786,2]
[358385457,1745046311085,-151.0,0.00019786,2]
[358385458,1745046311108,-151.0,0.00019786,2]
[358385459,1745046311131,-281.838876,0.00019786,2]
[358385460,1745046311155,-151.0,0.00019786,2]
[358385461,1745046311177,-151.0,0.00019786,2]
[358385462,1745046311204,-156.275473,0.00019786,2]
[358385463,1745046311227,-151.0,0.00019786,2]
[358385464,1745046311249,-154.465226,0.00019786,2]
[358385465,1745046311274,-153.873132,0.00019786,2]
[358385466,1745046311296,-288.83639,0.00019786,2]
[358385467,1745046311319,-155.848723,0.00019786,2]
[358385468,1745046311343,-151.0,0.00019786,2]
[358385469,1745046311366,-151.0,0.00019786,2]
[358385470,1745046311388,-151.0,0.00019786,2]
[358385471,1745046311412,-151.0,0.00019786,2]
[358385472,1745046311435,-151.0,0.00019786,2]
[358385473,1745046311459,-176.127877,0.00019786,2]
[358385474,1745046311483,-156.493646,0.00019786,2]
[358385475,1745046311509,-151.0,0.00019786,2]
[358385476,1745046311533,-156.493646,0.00019786,2]
[358385477,1745046311556,-152.34905,0.00019786,2]
[358385478,1745046311579,-156.493646,0.00019786,2]
[358385479,1745046311602,-156.493646,0.00019786,2]
[358385480,1745046311625,-156.493646,0.00019786,2]
[358385481,1745046311649,-156.493646,0.00019786,2]
[358385482,1745046311674,-156.493646,0.00019786,2]
[358385483,1745046311698,-156.493646,0.00019786,2]
[358385484,1745046311723,-156.493646,0.00019786,2]
[358385485,1745046311747,-156.493646,0.00019786,2]
[358385486,1745046311773,-156.493646,0.00019786,2]
[358385487,1745046311797,-151.0,0.00019786,2]
[358385488,1745046311820,-156.493646,0.00019786,2]
[358385489,1745046311843,-152.64716,0.00019786,2]
[358385490,1745046311867,-156.493646,0.00019786,2]
[358385491,1745046311890,-156.493646,0.00019786,2]
[358385492,1745046311914,-156.493646,0.00019786,2]
[358385493,1745046311937,-156.493646,0.00019786,2]
[358385494,1745046311961,-156.493646,0.00019786,2]
[358385495,1745046311984,-156.493646,0.00019786,2]
[358385496,1745046312007,-156.493646,0.00019786,2]
[358385497,1745046312030,-156.493644,0.00019786,2]
[358385498,1745046312054,-19831.1782863,0.00019786,2]
[358385499,1745046312076,-166.515016,0.00019786,2]
[358385500,1745046312100,-500.0,0.00019786,2]
[358385501,1745046312123,-151.0,0.00019786,2]
[358385502,1745046312147,-151.0,0.00019786,2]
[358385503,1745046312170,-197.42752,0.00019786,2]
[358385504,1745046312196,-151.0,0.00019786,2]
[358385505,1745046312219,-151.0,0.00019786,2]
[358385506,1745046312243,-154.364096,0.00019786,2]
[358385507,1745046312265,-151.0,0.00019786,2]
[358385508,1745046312289,-151.0,0.00019786,2]
[358385509,1745046312312,-151.0,0.00019786,2]
[358385510,1745046312335,-151.0,0.00019786,2]
[358385511,1745046312358,-151.0,0.00019786,2]
[358385512,1745046312383,-151.0,0.00019786,2]
[358385513,1745046312407,-259.804492,0.00019786,2]
[358385514,1745046312431,-151.0,0.00019786,2]
[358385515,1745046312456,-151.0,0.00019786,2]
[358385516,1745046312480,-151.0,0.00019786,2]
[358385517,1745046312503,-155.935892,0.00019786,2]
[358385518,1745046312527,-9398.9190018,0.00019786,2]
[358385519,1745046312550,-155.396592,0.00019786,2]
[358385520,1745046312574,-151.0,0.00019786,2]
[358385521,1745046312600,-151.0,0.00019786,2]
[358385522,1745046312624,-151.0,0.00019786,2]
[358385523,1745046312646,-151.0,0.00019786,2]
[358385524,1745046312670,-151.721771,0.00019786,2]
[358385525,1745046312694,-151.0,0.00019786,2]
[358385526,1745046312717,-151.0,0.00019786,2]
[358385527,1745046312740,-151.0,0.00019786,2]
[358385528,1745046312763,-151.0,0.00019786,2]
[358385529,1745046312785,-151.0,0.00019786,2]
[358385530,1745046312808,-151.0,0.00019786,2]
[358385531,1745046312992,-151.0,0.00019786,2]
[358385532,1745046313017,-155.881806,0.00019786,2]
[358385533,1745046313040,-199.41724828,0.00019786,2]
[358385534,1745046313063,-150.0,0.00019786,2]
[358385535,1745046313088,-150.51650669,0.00019786,2]
[358385536,1745046313113,-150.0,0.00019786,2]
[358385537,1745046313135,-150.0,0.00019786,2]
[358385538,1745046313158,-151.0,0.00019786,2]
[358385539,1745046313183,-151.0,0.00019786,2]
[358385540,1745046313206,-151.0,0.00019786,2]
[358385541,1745046313230,-500.0,0.00019786,2]
[358385542,1745046313252,-151.0,0.00019786,2]
[358385543,1745046313278,-151.0,0.00019786,2]
[358385544,1745046313300,-151.0,0.00019786,2]
[358385545,1745046313324,-151.0,0.00019786,2]
[358385546,1745046313348,-151.0,0.00019786,2]
[358385547,1745046313370,-151.0,0.00019786,2]
[358385548,1745046313392,-159.60576,0.00019786,2]
[358385549,1745046313416,-151.0,0.00019786,2]
[358385550,1745046313440,-151.0,0.00019786,2]
[358385551,1745046313464,-151.0,0.00019786,2]
[358385552,1745046313488,-151.0,0.00019786,2]
[358385553,1745046313512,-151.0,0.00019786,2]
[358385554,1745046313536,-151.0,0.00019786,2]
[358385555,1745046313561,-151.0,0.00019786,2]
[358385556,1745046313585,-151.0,0.00019786,2]
[358385557,1745046313607,-151.0,0.00019786,2]
[358385558,1745046313631,-151.0,0.00019786,2]
[358385559,1745046313655,-166.604683,0.00019786,2]
[358385560,1745046313678,-178.50936,0.00019786,2]
[358385561,1745046313702,-153.444203,0.00019786,2]
[358385562,1745046313726,-151.0,0.00019786,2]
[358385563,1745046313749,-151.0,0.00019786,2]
[358385564,1745046313772,-207.380483,0.00019786,2]
[358385565,1745046313796,-151.0,0.00019786,2]
[358385566,1745046313819,-151.0,0.00019786,2]
[358385567,1745046313841,-155.555409,0.00019786,2]
[358385568,1745046313863,-156.013009,0.00019786,2]
[358385569,1745046313885,-168.270169,0.00019786,2]
[358385570,1745046313906,-151.0,0.00019786,2]
[358385571,1745046313929,-151.0,0.00019786,2]
[358385572,1745046313951,-151.0,0.00019786,2]
[358385573,1745046313973,-153.702966,0.00019786,2]
[358385574,1745046313996,-151.0,0.00019786,2]
[358385575,1745046314020,-151.0,0.00019786,2]
[358385576,1745046314043,-151.0,0.00019786,2]
[358385577,1745046314064,-151.0,0.00019786,2]
[358385578,1745046314086,-151.0,0.00019786,2]
[358385579,1745046314108,-151.0,0.00019786,2]
[358385580,1745046314130,-156.278853,0.00019786,2]
[358385581,1745046314151,-151.0,0.00019786,2]
[358385582,1745046314174,-151.0,0.00019786,2]
[358385583,1745046314201,-156.796197,0.00019786,2]
[358385584,1745046314225,-2968.6603974,0.00019786,2]
[358385585,1745046314249,-151.0,0.00019786,2]
[358385586,1745046314274,-155.874203,0.00019786,2]
[358385587,1745046314297,-151.0,0.00019786,2]
[358385588,1745046314320,-290.471215,0.00019786,2]
[358385589,1745046314344,-154.447659,0.00019786,2]
[358385590,1745046314368,-151.0,0.00019786,2]
[358385591,1745046314392,-151.0,0.00019786,2]
[358385592,1745046314415,-151.0,0.00019786,2]
[358385593,1745046314440,-151.0,0.00019786,2]
[358385594,1745046314464,-164.687902,0.00019786,2]
[358385595,1745046314489,-151.0,0.00019786,2]
[358385596,1745046314516,-151.0,0.00019786,2]
[358385597,1745046314539,-151.0,0.00019786,2]
[358385598,1745046314565,-151.0,0.00019786,2]
[358385599,1745046314590,-223.768387,0.00019786,2]
[358385600,1745046314616,-287.53727862,0.00019786,2]
[358385601,1745046314640,-130426.2248333,0.00019786,2]
[358385602,1745046314667,-151.0,0.00019786,2]
[358385603,1745046314693,-151.0,0.00019786,2]
[358385604,1745046314718,-151.0,0.00019786,2]
[358385605,1745046314745,-151.0,0.00019786,2]
[358385606,1745046314769,-151.0,0.00019786,2]
[358385607,1745046314793,-183.392153,0.00019786,2]
[358385608,1745046314819,-151.0,0.00019786,2]
[358385609,1745046314845,-162.211002,0.00019786,2]
[358385610,1745046314871,-151.0,0.00019786,2]
[358385611,1745046314896,-151.0,0.00019786,2]
[358385612,1745046314920,-225.426294,0.00019786,2]
[358385613,1745046314943,-151.0,0.00019786,2]
[358385614,1745046314967,-153.95486,0.00019786,2]
[358385615,1745046314993,-152.979305,0.00019786,2]
[358385616,1745046315018,-190.687953,0.00019786,2]
[358385617,1745046315043,-151.0,0.00019786,2]
[358385618,1745046315067,-151.0,0.00019786,2]
[358385619,1745046315089,-151.0,0.00019786,2]
[358385620,1745046315113,-151.0,0.00019786,2]
[358385621,1745046315136,-151.0,0.00019786,2]
[358385622,1745046315159,-154.962864,0.00019786,2]
[358385623,1745046315185,-202.345789,0.00019786,2]
[358385624,1745046315212,-3348.48,0.00019786,2]
[358385625,1745046315236,-151.0,0.00019786,2]
[358385626,1745046315259,-151.0,0.00019786,2]
[358385627,1745046315282,-274.216266,0.00019786,2]
[358385628,1745046315304,-151.0,0.00019786,2]
[358385629,1745046315327,-156.620071,0.00019786,2]
[358385630,1745046315350,-151.0,0.00019786,2]
[358385631,1745046315373,-151.0,0.00019786,2]
[358385632,1745046315396,-151.0,0.00019786,2]
[358385633,1745046315418,-151.0,0.00019786,2]
[358385634,1745046315440,-151.0,0.00019786,2]
[358385635,1745046315463,-151.0,0.00019786,2]
[358385636,1745046315487,-151.0,0.00019786,2]
[358385637,1745046315510,-188.478393,0.00019786,2]
[358385638,1745046315536,-151.0,0.00019786,2]
[358385639,1745046315560,-151.0,0.00019786,2]
[358385640,1745046315586,-151.0,0.00019786,2]
[358385641,1745046315612,-151.0,0.00019786,2]
[358385642,1745046315638,-151.0,0.00019786,2]
[358385643,1745046315664,-151.0,0.00019786,2]
[358385644,1745046315691,-236.613327,0.00019786,2]
[358385645,1745046315717,-345.619945,0.00019786,2]
[358385646,1745046315739,-345.619945,0.00019786,2]
[358385647,1745046315765,-345.619945,0.00019786,2]
[358385648,1745046315790,-345.619945,0.00019786,2]
[358385649,1745046315814,-345.619945,0.00019786,2]
[358385650,1745046315838,-345.619945,0.00019786,2]
[358385651,1745046315860,-345.619945,0.00019786,2]
[358385652,1745046315883,-345.619945,0.00019786,2]
[358385653,1745046315907,-345.619945,0.00019786,2]
[358385654,1745046315929,-345.619945,0.00019786,2]
[358385655,1745046315952,-345.619945,0.00019786,2]
[358385656,1745046315975,-345.619945,0.00019786,2]
[358385657,1745046315999,-345.619945,0.00019786,2]
[358385658,1745046316022,-345.619945,0.00019786,2]
[358385659,1745046316045,-345.619945,0.00019786,2]
[358385660,1745046316069,-345.619945,0.00019786,2]
[358385661,1745046316092,-345.619945,0.00019786,2]
[358385662,1745046316115,-345.619945,0.00019786,2]
[358385663,1745046316138,-345.619945,0.00019786,2]
[358385664,1745046316161,-345.619949,0.00019786,2]
[358385665,1745046316186,-151.0,0.00019786,2]
[358385666,1745046316208,-151.0,0.00019786,2]
[358385667,1745046316232,-151.0,0.00019786,2]
[358385668,1745046316255,-158.726609,0.00019786,2]
[358385669,1745046316281,-151.0,0.00019786,2]
[358385670,1745046316304,-151.0,0.00019786,2]
[358385671,1745046316326,-151.0,0.00019786,2]
[358385672,1745046316348,-151.0,0.00019786,2]
[358385673,1745046316372,-151.0,0.00019786,2]
[358385674,1745046316396,-151.0,0.00019786,2]
[358385675,1745046316419,-151.0,0.00019786,2]
[358385676,1745046316443,-151.0,0.00019786,2]
[358385677,1745046316466,-151.0,0.00019786,2]
[358385678,1745046316489,-151.0,0.00019786,2]
[358385679,1745046316512,-151.0,0.00019786,2]
[358385680,1745046316536,-151.0,0.00019786,2]
[358385681,1745046316560,-151.0,0.00019786,2]
[358385682,1745046316586,-154.679048,0.00019786,2]
[358385683,1745046316610,-500.0,0.00019786,2]
[358385684,1745046316633,-150.0,0.00019786,2]
[358385685,1745046316655,-150.0,0.00019786,2]
[358385686,1745046316678,-151.0,0.00019786,2]
[358385687,1745046316700,-151.0,0.00019786,2]
[358385688,1745046316723,-153.565386,0.00019786,2]
[358385689,1745046316746,-200.25827935,0.00019786,2]
[358385690,1745046316769,-500.0,0.00019786,2]
[358385691,1745046316792,-150.0,0.00019786,2]
[358385692,1745046316969,-150.0,0.00019786,2]
[358385693,1745046316994,-150.0,0.00019786,2]
[358385694,1745046317018,-501.46849,0.00019786,2]
[358385695,1745046317041,-501.46849,0.00019786,2]
[358385696,1745046317065,-501.46849,0.00019786,2]
[358385697,1745046317089,-501.46849,0.00019786,2]
[358385698,1745046317112,-276.502687,0.00019786,2]
[358385699,1745046317137,-501.46849,0.00019786,2]
[358385700,1745046317162,-501.46849,0.00019786,2]
[358385701,1745046317189,-276.502687,0.00019786,2]
[358385702,1745046317214,-151.0,0.00019786,2]
[358385703,1745046317240,-151.0,0.00019786,2]
[358385704,1745046317266,-276.502687,0.00019786,2]
[358385705,1745046317290,-159.541088,0.00019786,2]
[358385706,1745046317314,-501.46849,0.00019786,2]
[358385707,1745046317336,-276.502687,0.00019786,2]
[358385708,1745046317362,-501.46849,0.00019786,2]
[358385709,1745046317387,-276.502687,0.00019786,2]
[358385710,1745046317411,-501.46849,0.00019786,2]
[358385711,1745046317435,-276.502687,0.00019786,2]
[358385712,1745046317460,-501.46849,0.00019786,2]
[358385713,1745046317484,-276.502687,0.00019786,2]
[358385714,1745046317507,-501.46849,0.00019786,2]
[358385715,1745046317533,-276.502687,0.00019786,2]
[358385716,1745046317558,-501.46849,0.00019786,2]
[358385717,1745046317582,-276.502687,0.00019786,2]
[358385718,1745046317606,-501.46849,0.00019786,2]
[358385719,1745046317629,-276.502687,0.00019786,2]
[358385720,1745046317653,-501.46849,0.00019786,2]
[358385721,1745046317677,-276.502687,0.00019786,2]
[358385722,1745046317702,-501.46849,0.00019786,2]
[358385723,1745046317727,-276.502687,0.00019786,2]
[358385724,1745046317752,-501.46849,0.00019786,2]
[358385725,1745046317776,-276.502687,0.00019786,2]
[358385726,1745046317802,-501.46849,0.00019786,2]
[358385727,1745046317828,-276.502687,0.00019786,2]
[358385728,1745046317853,-501.46849,0.00019786,2]
[358385729,1745046317879,-276.502687,0.00019786,2]
[358385730,1745046317904,-501.46849,0.00019786,2]
[358385731,1745046317930,-276.502687,0.00019786,2]
[358385732,1745046317955,-501.468499,0.00019786,2]
[358385733,1745046317980,-276.502687,0.00019786,2]
[358385734,1745046318004,-276.502687,0.00019786,2]
[358385735,1745046318027,-276.502687,0.00019786,2]
[358385736,1745046318051,-276.502682,0.00019786,2]
[358385737,1745046318073,-160.906993,0.00019786,2]
[358385738,1745046318096,-151.0,0.00019786,2]
[358385739,1745046318119,-151.0,0.00019786,2]
[358385740,1745046318142,-157.250267,0.00019786,2]
[358385741,1745046318165,-151.0,0.00019786,2]
[358385742,1745046318190,-151.0,0.00019786,2]
[358385743,1745046318213,-151.0,0.00019786,2]
[358385744,1745046318238,-159.044622,0.00019786,2]
[358385745,1745046318262,-155.69359,0.00019786,2]
[358385746,1745046318287,-208.48162134,0.00019786,2]
[358385747,1745046318310,-150.71792179,0.00019786,2]
[358385748,1745046318331,-500.0,0.00019786,2]
[358385749,1745046318354,-500.0,0.00019786,2]
[358385750,1745046318378,-151.0,0.00019786,2]
[358385751,1745046318402,-151.0,0.00019786,2]
[358385752,1745046318426,-151.0,0.00019786,2]
[358385753,1745046318449,-150.0,0.00019786,2]
[358385754,1745046318473,-151.0,0.00019786,2]
[358385755,1745046318498,-151.0,0.00019786,2]
[358385756,1745046318525,-151.0,0.00019786,2]
[358385757,1745046318549,-151.0,0.00019786,2]
[358385758,1745046318573,-151.0,0.00019786,2]
[358385759,1745046318597,-151.0,0.00019786,2]
[358385760,1745046318620,-151.0,0.00019786,2]
[358385761,1745046318643,-500.0,0.00019786,2]
[358385762,1745046318666,-151.0,0.00019786,2]
[358385763,1745046318690,-151.0,0.00019786,2]
[358385764,1745046318716,-210.493144,0.00019786,2]
[358385765,1745046318741,-151.0,0.00019786,2]
[358385766,1745046318765,-151.0,0.00019786,2]
[358385767,1745046318788,-500.0,0.00019786,2]
[358385768,1745046318812,-151.0,0.00019786,2]
[358385769,1745046318836,-151.0,0.00019786,2]
[358385770,1745046318859,-150.0,0.00019786,2]
[358385771,1745046318882,-151.0,0.00019786,2]
[358385772,1745046318905,-237.366299,0.00019786,2]
[358385773,1745046318929,-150.0,0.00019786,2]
[358385774,1745046318953,-180.7125962,0.00019786,2]
[358385775,1745046318975,-151.0,0.00019786,2]
[358385776,1745046318999,-151.0,0.00019786,2]
[358385777,1745046319022,-151.0,0.00019786,2]
[358385778,1745046319046,-151.0,0.00019786,2]
[358385779,1745046319069,-151.722745,0.00019786,2]
[358385780,1745046319092,-151.0,0.00019786,2]
[358385781,1745046319116,-151.0,0.00019786,2]
[358385782,1745046319139,-151.0,0.00019786,2]
[358385783,1745046319162,-151.0,0.00019786,2]
[358385784,1745046319188,-151.0,0.00019786,2]
[358385785,1745046319212,-192.262718,0.00019786,2]
[358385786,1745046319237,-151.0,0.00019786,2]
[358385787,1745046319262,-151.0,0.00019786,2]
[358385788,1745046319287,-160.399823,0.00019786,2]
[358385789,1745046319311,-151.0,0.00019786,2]
[358385790,1745046319335,-156.495794,0.00019786,2]
[358385791,1745046319359,-215.996615,0.00019786,2]
[358385792,1745046319382,-152.504411,0.00019786,2]
[358385793,1745046319406,-215.996615,0.00019786,2]
[358385794,1745046319429,-215.996615,0.00019786,2]
[358385795,1745046319453,-215.996615,0.00019786,2]
[358385796,1745046319477,-215.996615,0.00019786,2]
[358385797,1745046319502,-215.996615,0.00019786,2]
[358385798,1745046319525,-215.996615,0.00019786,2]
[358385799,1745046319550,-215.996615,0.00019786,2]
[358385800,1745046319574,-215.996615,0.00019786,2]
[358385801,1745046319598,-215.996615,0.00019786,2]
[358385802,1745046319621,-215.996615,0.00019786,2]
[358385803,1745046319645,-215.996615,0.00019786,2]
[358385804,1745046319669,-215.996615,0.00019786,2]
[358385805,1745046319694,-215.996615,0.00019786,2]
[358385806,1745046319717,-215.996615,0.00019786,2]
[358385807,1745046319742,-287.53727861,0.00019788,2]
[358385808,1745046319767,-287.53727861,0.00019789,2]
[358385809,1745046319791,-287.53727861,0.00019791,2]
[358385810,1745046319815,-287.53727861,0.00019792,2]
[358385811,1745046319841,-287.53727861,0.00019794,2]
[358385812,1745046319865,-287.53727861,0.00019795,2]
[358385813,1745046319890,-287.53727861,0.00019797,2]
[358385814,1745046319915,-287.53727861,0.00019798,2]
[358385815,1745046319940,-1088.58,0.000198,2]
[358385816,1745046319965,-287.53727861,0.000198,2]
[358385817,1745046319989,-208.9706063,0.000198,2]
[358385818,1745046320014,-446.68424504,0.000198,2]
[358385819,1745046320038,-446.68424502,0.0001985,2]
[358385820,1745046320061,-626.0699544,0.00019873,2]
[358385821,1745046320084,-500.0,0.00019873,2]
[358385822,1745046320108,-500.0,0.00019873,2]
[358385823,1745046320132,-500.0,0.00019873,2]